bitfinex/quotes_SOLUSD_20240624
["timestamp","ask_amount","ask_price","bid_price","bid_amount"]
[1719262905286,4.995,128.7,128.59,35.1262]
[1719262905487,22.485,128.69,128.58,1.79907684]
[1719262905891,6.4494,128.68,128.57,20.0]
[1719262906283,6.4494,128.68,128.52,130.48]
[1719262906611,6.4494,128.68,128.55,16.0356]
[1719262907287,6.4494,128.68,128.56,130.48]
[1719262908285,6.319,128.66,128.56,100.0]
[1719262908490,6.319,128.64,128.56,100.0]
[1719262908678,6.319,128.64,128.56,101.79935672]
[1719262909878,6.319,128.64,128.59,30.48]
[1719262910601,15.6548,128.67,128.59,30.48]
[1719262910892,6.319,128.68,128.63,30.48]
[1719262911102,6.319,128.68,128.64,20.17]
[1719262911887,4.995,128.7,128.64,20.17]
[1719262912087,4.995,128.7,128.65,0.17]
[1719262912499,4.995,128.7,128.64,20.17]
[1719262913699,4.995,128.7,128.67,30.48]
[1719262914004,4.995,128.7,128.68,0.17]
[1719262914171,4.995,128.7,128.67,30.48]
[1719262914374,4.995,128.7,128.68,20.0]
[1719262916297,22.1318,128.77,128.69,0.34]
[1719262917213,6.1607,128.77,128.71,30.48]
[1719262917375,6.1607,128.77,128.72,20.34]
[1719262917892,22.3759,128.81,128.72,20.34]
[1719262918093,6.4048,128.81,128.75,30.48]
[1719262918296,6.4048,128.81,128.76,20.34]
[1719262918595,22.2908,128.85,128.76,20.34]
[1719262919184,15.9711,128.9,128.8,30.48]
[1719262919385,15.9711,128.9,128.81,20.17]
[1719262920689,15.9711,128.9,128.81,20.0]
[1719262922004,15.9711,128.9,128.77,1.79642231]
[1719262922198,15.9711,128.9,128.77,21.79642231]
[1719262922910,15.9711,128.9,128.78,100.0]
[1719262923096,15.9711,128.9,128.79,20.0]
[1719262923297,15.9711,128.9,128.83,30.48]
[1719262924178,6.5565,128.91,128.83,30.48]
[1719262924408,6.5565,128.91,128.84,20.17]
[1719262925908,6.2911,128.94,128.84,120.17]
[1719262926094,6.2911,128.94,128.87,30.48]
[1719262926296,6.2194,128.99,128.88,0.17]
[1719262926607,6.2194,128.99,128.94,7.7554]
[1719262927307,6.2194,128.99,128.97,7.7536]
[1719262927485,15.9711,129.06,128.96,19.3848]
[1719262927682,15.9711,129.06,128.98,19.3816]
[1719262927912,15.9711,129.06,128.95,30.48]
[1719262928108,6.4761,129.07,128.99,30.48]
[1719262928287,6.4761,129.07,129.0,0.17]
[1719262928489,6.4761,129.07,128.98,19.3824]
[1719262928688,6.4761,129.07,128.94,30.48]
[1719262928917,6.4761,129.07,128.95,39.5571]
[1719262929295,6.4761,129.07,128.99,7.752]
[1719262929490,6.4761,129.07,128.98,19.3827]
[1719262929690,6.4761,129.07,128.98,27.1353]
[1719262930185,6.4761,129.07,128.99,7.752]
[1719262930384,6.4761,129.07,128.98,19.3827]
[1719262930810,6.4761,129.07,128.96,0.17]
[1719262930994,6.4761,129.07,128.97,19.3837]
[1719262931403,6.4761,129.07,128.98,27.7526]
[1719262931599,6.4761,129.07,129.0,19.3792]
[1719262932108,6.4761,129.07,129.01,20.0]
[1719262933386,6.4761,129.07,128.99,30.48]
[1719262933593,6.4761,129.07,129.01,7.751]
[1719262934016,6.4761,129.07,129.0,27.301]
[1719262934017,6.6581276,129.07,129.0,27.301]
[1719262934310,6.6581276,129.07,129.01,20.0]
[1719262935522,6.6581276,129.07,128.97,27.1378]
[1719262935693,6.6581276,129.07,128.94,55.60578968]
[1719262935888,6.6581276,129.07,128.95,7.7549]
[1719262936200,6.6581276,129.07,128.94,65.8393]
[1719262936997,15.3618,129.06,128.94,65.8393]
[1719262937313,15.3618,129.06,128.96,7.7541]
[1719262937494,15.3618,129.06,128.96,19.3843]
[1719262937702,15.3618,129.06,128.96,38.7709]
[1719262937899,6.6581276,129.07,128.97,1.79363651]
[1719262938125,6.6581276,129.07,128.99,30.48]
[1719262938410,6.6581276,129.07,129.0,7.7514]
[1719262938717,6.6581276,129.07,129.02,7.7506]
[1719262938916,6.6581276,129.07,129.03,19.3747]
[1719262939121,0.1820276,129.07,129.0,120.0]
[1719262939323,0.1820276,129.07,129.06,7.7483]
[1719262939487,0.1820276,129.07,129.03,30.48]
[1719262939822,0.1820276,129.07,129.0,27.9217]
[1719262939990,0.1820276,129.07,129.0,50.65]
[1719262940193,0.1820276,129.07,129.0,30.48]
[1719262940515,0.1820276,129.07,128.97,1.79363651]
[1719262940896,6.3896,129.06,128.97,1.79363651]
[1719262941218,6.3896,129.06,128.98,7.7526]
[1719262941608,6.3896,129.06,129.01,7.7512]
[1719262942296,6.3896,129.06,129.02,45.0]
[1719262943205,6.3896,129.06,129.02,52.7506]
[1719262943717,6.3896,129.06,129.02,52.7502]
[1719262943916,6.3896,129.06,129.03,7.75]
[1719262944295,6.3896,129.06,129.04,45.0]
[1719262945324,6.3896,129.06,129.03,45.0]
[1719262945530,6.3896,129.06,128.98,27.1347]
[1719262946017,6.3896,129.06,128.98,19.3821]
[1719262946198,6.3896,129.06,128.98,27.1351]
[1719262946390,6.3896,129.06,128.97,1.79363651]
[1719262946828,6.3896,129.06,128.99,19.38]
[1719262947321,6.3896,129.06,128.99,27.1323]
[1719262947508,6.3896,129.06,129.0,7.7519]
[1719262948200,6.3896,129.06,129.0,7.7513]
[1719262949017,6.3896,129.06,128.99,27.1323]
[1719262949317,6.3896,129.06,128.98,1.79349745]
[1719262949520,6.3896,129.06,128.96,19.385]
[1719262949708,6.3896,129.06,128.97,7.7536]
[1719262950228,6.3896,129.06,128.96,19.385]
[1719262950717,22.0112,129.04,128.92,30.48]
[1719262950897,22.0112,129.04,128.93,7.7561]
[1719262951221,22.0112,129.04,128.92,49.8711]
[1719262951405,22.0112,129.04,128.95,7.7548]
[1719262951604,22.0112,129.04,128.96,7.7542]
[1719262951813,22.0112,129.04,128.95,7.7547]
[1719262952405,22.0112,129.04,128.96,45.0]
[1719262952803,22.0112,129.04,128.95,45.0]
[1719262953120,22.0112,129.04,128.98,7.7529]
[1719262953312,22.0112,129.04,128.99,64.381]
[1719262953505,6.0401,129.04,129.0,30.48]
[1719262953714,6.0401,129.04,129.01,52.7508]
[1719262953915,6.0401,129.04,129.01,45.0]
[1719262954132,0.1820276,129.07,129.01,45.0]
[1719262954307,0.1820276,129.07,129.01,64.3769]
[1719262954502,0.1820276,129.07,129.03,19.3746]
[1719262954713,0.1820276,129.07,129.04,45.0]
[1719262954921,0.1820276,129.07,129.04,52.7494]
[1719262955116,0.1820276,129.07,129.04,45.0]
[1719262956008,0.1820276,129.07,129.03,45.0]
[1719262956208,0.1820276,129.07,129.03,52.7499]
[1719262956420,0.1820276,129.07,129.04,7.7493]
[1719262956626,0.1820276,129.07,129.05,52.7483]
[1719262957219,0.1820276,129.07,129.05,45.0]
[1719262957733,0.1820276,129.07,129.05,52.7484]
[1719262957900,0.1820276,129.07,129.05,45.0]
[1719262958717,0.1820276,129.07,129.04,45.0]
[1719262959131,0.1820276,129.07,129.0,30.48]
[1719262959332,0.1820276,129.07,129.02,7.7505]
[1719262959530,0.1820276,129.07,129.04,7.7494]
[1719262960121,0.1820276,129.07,129.03,7.75]
[1719262960444,0.1820276,129.07,129.04,45.0]
[1719262960616,0.1820276,129.07,129.04,72.1224]
[1719262960817,0.1820276,129.07,129.04,45.0]
[1719262961730,0.1820276,129.07,129.01,19.3778]
[1719262961731,0.1820276,129.07,129.03,52.75]
[1719262962123,0.1820276,129.07,129.03,45.0]
[1719262962542,0.1820276,129.07,129.02,52.7506]
[1719262962916,0.1820276,129.07,129.04,7.7495]
[1719262963116,0.1820276,129.07,129.05,45.0]
[1719262963536,0.1820276,129.07,129.04,45.0]
[1719262964828,0.1820276,129.07,129.0,49.8591]
[1719262965434,0.1820276,129.07,129.0,57.6108]
[1719262965637,0.1820276,129.07,129.0,49.8591]
[1719262966114,0.1820276,129.07,129.0,30.48]
[1719262966317,0.1820276,129.07,128.97,25.3673859]
[1719262966521,15.2551,129.06,128.97,19.3834]
[1719262966835,15.2551,129.06,128.95,39.30034109]
[1719262967024,6.5443,129.05,128.96,7.7542]
[1719262967637,6.5443,129.05,128.98,7.7529]
[1719262969037,6.5443,129.05,128.99,45.0]
[1719262969238,6.5443,129.05,129.0,7.7513]
[1719262969432,6.5443,129.05,129.01,45.0]
[1719262969635,6.5443,129.05,128.99,45.0]
[1719262970144,6.5443,129.05,128.98,45.0]
[1719262970462,6.5443,129.05,128.99,7.7519]
[1719262970643,6.5443,129.05,129.0,45.0]
[1719262971526,6.5443,129.05,129.0,52.7518]
[1719262971725,6.5443,129.05,129.01,7.7511]
[1719262971932,6.5443,129.05,129.0,45.0]
[1719262971933,6.5443,129.05,129.02,45.0]
[1719262972126,6.5443,129.05,129.0,52.7517]
[1719262973441,0.1820276,129.07,129.02,30.3]
[1719262973620,0.1820276,129.07,129.05,19.3719]
[1719262973826,0.1820276,129.07,129.06,45.0]
[1719262975338,0.1820276,129.07,129.05,45.0]
[1719262977445,0.1820276,129.07,129.05,52.7484]
[1719262977641,0.1820276,129.07,129.05,45.0]
[1719262978349,0.1820276,129.07,129.03,19.3749]
[1719262978524,0.1820276,129.07,129.03,23.21679811]
[1719262978724,0.1820276,129.07,129.04,7.7493]
[1719262979035,0.1820276,129.07,129.04,7.7491]
[1719262979649,0.1820276,129.07,129.06,7.7483]
[1719262979954,6.5146,129.12,129.08,7.7467]
[1719262980147,6.5146,129.18,129.09,45.0]
[1719262980348,6.5146,129.18,129.11,7.7452]
[1719262980545,6.5146,129.18,129.12,45.0]
[1719262982039,6.5146,129.18,129.11,45.0]
[1719262982363,6.5146,129.18,129.1,45.0]
[1719262983338,6.5146,129.18,129.11,19.3624]
[1719262983640,6.5146,129.18,129.12,45.0]
[1719262984166,0.8702,129.19,129.14,19.3577]
[1719262984338,0.8702,129.19,129.15,45.0]
[1719262984664,0.8702,129.19,129.16,7.7421]
[1719262984869,0.8702,129.19,129.17,45.0]
[1719262985495,0.8702,129.19,129.16,45.0]
[1719262985833,0.8702,129.19,129.17,1.29975533]
[1719262986146,0.8702,129.19,129.18,7.7411]
[1719262986339,0.8702,129.19,129.18,54.38075471]
[1719262986544,0.8702,129.19,129.18,52.7411]
[1719262986835,0.8702,129.19,129.18,72.7411]
[1719262987059,0.8702,129.19,129.18,65.0]
[1719262987336,0.8702,129.19,129.18,72.9111]
[1719262987862,6.0041,129.25,129.21,7.7389]
[1719262988045,6.0041,129.25,129.22,45.0]
[1719262988254,6.0041,129.25,129.21,45.0]
[1719262990552,6.0041,129.25,129.17,57.3947]
[1719262990862,6.0041,129.25,129.17,27.0947]
[1719262991063,6.0041,129.25,129.17,19.3532]
[1719262991450,6.0041,129.25,129.18,7.741]
[1719262991872,6.0041,129.25,129.19,45.0]
[1719262992049,6.0041,129.25,129.19,52.7402]
[1719262992365,6.0041,129.25,129.21,7.7388]
[1719262992543,6.0041,129.25,129.22,45.0]
[1719262992744,6.0041,129.25,129.21,45.0]
[1719262992955,0.8702,129.32,129.21,22.2018]
[1719262993192,0.8702,129.32,129.29,7.7344]
[1719262993352,0.8702,129.32,129.27,57.2746]
[1719262993539,0.8702,129.32,129.28,52.735]
[1719262993744,0.8702,129.32,129.28,45.0]
[1719262996658,0.8702,129.32,129.27,45.0]
[1719262997392,0.8702,129.32,129.23,19.3449]
[1719262998052,0.8702,129.32,129.25,7.7367]
[1719262998252,0.8702,129.32,129.26,7.736]
[1719262998765,0.8702,129.32,129.27,7.7356]
[1719262998955,0.8702,129.32,129.28,7.7351]
[1719262999159,0.8702,129.32,129.29,45.0]
[1719263000170,0.8702,129.32,129.3,7.7338]
[1719263000344,0.8702,129.32,129.31,45.0]
[1719263000554,0.8702,129.32,129.29,45.0]
[1719263001780,1.9460378,129.36,129.3,82.064]
[1719263001956,6.2293,129.44,129.35,30.2]
[1719263002153,6.2293,129.44,129.39,7.7285]
[1719263002455,6.2293,129.44,129.4,45.0]
[1719263002651,6.2293,129.44,129.41,0.63198222]
[1719263002853,0.8702,129.45,129.41,0.63198222]
[1719263003391,0.8702,129.45,129.42,49.5157]
[1719263003558,19.2902,129.6,129.42,49.5157]
[1719263003559,6.5824,129.53,129.47,7.7236]
[1719263003886,6.5824,129.53,129.43,27.0408]
[1719263004185,6.5824,129.53,129.44,45.0]
[1719263004758,6.5824,129.53,129.43,45.0]
[1719263005157,14.3028,129.53,129.43,45.0]
[1719263005493,22.9835,129.49,129.37,19.324]
[1719263005658,22.9835,129.49,129.36,30.2]
[1719263005659,0.17,129.48,129.36,30.2]
[1719263005854,6.6313,129.47,129.33,19.3289]
[1719263006187,21.5597,129.45,129.32,100.0]
[1719263006355,21.5597,129.45,129.34,30.2]
[1719263006675,21.5597,129.45,129.35,30.12]
[1719263006890,21.5597,129.45,129.36,27.0544]
[1719263007276,21.5597,129.45,129.37,7.7295]
[1719263007489,21.5597,129.45,129.36,27.0548]
[1719263007664,21.5597,129.45,129.35,30.12]
[1719263007866,21.5597,129.45,129.36,45.0]
[1719263008164,21.5597,129.45,129.36,52.7299]
[1719263008366,21.5597,129.45,129.37,7.7297]
[1719263008670,6.1782,129.45,129.38,52.7291]
[1719263008991,6.1782,129.45,129.39,37.8484]
[1719263009169,6.1782,129.45,129.4,45.0]
[1719263010164,6.1782,129.45,129.36,7.73]
[1719263010384,6.1782,129.45,129.37,52.7295]
[1719263010888,6.1782,129.45,129.35,30.12]
[1719263011070,6.1782,129.45,129.34,19.3284]
[1719263011661,6.1782,129.45,129.34,27.0596]
[1719263012065,15.0159,129.44,129.32,100.0]
[1719263012403,7.8967,129.43,129.32,100.0]
[1719263012585,0.17,129.43,129.32,100.0]
[1719263012789,0.17,129.42,129.32,100.0]
[1719263013081,7.7278,129.41,129.32,100.0]
[1719263013289,0.17,129.42,129.32,107.7326]
[1719263013608,15.0159,129.44,129.32,119.3305]
[1719263013896,0.34,129.43,129.32,100.0]
[1719263014097,0.34,129.43,129.32,107.7322]
[1719263014305,0.34,129.43,129.32,100.0]
[1719263014667,7.7274,129.41,129.32,100.0]
[1719263014891,0.34,129.4,129.32,100.0]
[1719263015083,6.1929,129.39,129.32,100.0]
[1719263015398,0.34,129.38,129.32,100.0]
[1719263015577,15.5755,129.36,129.32,100.0]
[1719263015893,8.0713,129.35,129.32,76.6668]
[1719263016095,125.17,129.38,129.32,76.6668]
[1719263016096,7.7297,129.37,129.32,76.6668]
[1719263016402,0.17,129.34,129.32,76.6668]
[1719263017102,7.7321,129.33,129.32,70.0002]
[1719263017306,0.17,129.33,129.32,70.0002]
[1719263017486,0.34,129.33,129.32,70.0002]
[1719263018381,7.7305,129.36,129.32,70.0002]
[1719263018593,7.7309,129.36,129.32,70.0002]
[1719263018913,0.34,129.35,129.32,70.0002]
[1719263019075,8.4143,129.33,129.32,15.9514]
[1719263019291,8.4143,129.33,129.32,5.8378]
[1719263019292,8.5843,129.33,129.32,5.8378]
[1719263019494,78.5843,129.33,129.32,5.8378]
[1719263019800,53.5843,129.33,129.32,3.51455283]
[1719263019997,53.5843,129.33,129.32,1.51455283]
[1719263020200,32.7344,129.3,129.16,19.3552]
[1719263020400,0.17,129.29,129.18,7.741]
[1719263020597,0.17,129.29,129.17,7.7415]
[1719263020791,7.7398,129.21,129.09,6.2986]
[1719263021017,7.7376,129.24,129.11,7.7452]
[1719263021206,7.7376,129.24,129.09,19.3655]
[1719263021207,0.17,129.23,129.09,19.3655]
[1719263021597,7.9082,129.23,129.1,7.7457]
[1719263021991,0.17,129.23,129.11,19.3623]
[1719263022189,0.17,129.23,129.13,19.3595]
[1719263022493,0.17,129.23,129.12,7.7445]
[1719263022691,0.17,129.24,129.12,7.7445]
[1719263023052,7.7358,129.27,129.14,7.7434]
[1719263023216,25.0,129.28,129.12,49.4806]
[1719263023392,32.7352,129.28,129.15,7.7426]
[1719263023800,32.7352,129.28,129.16,45.0]
[1719263024413,149.4463,129.36,129.16,45.0]
[1719263024606,100.0,129.34,129.16,30.12]
[1719263024800,100.0,129.34,129.18,19.3518]
[1719263025003,7.7333,129.31,129.19,45.0]
[1719263025530,7.7317,129.34,129.21,7.739]
[1719263025734,7.7317,129.34,129.22,45.0]
[1719263026200,7.7322,129.33,129.22,45.0]
[1719263026398,8.00547946,129.35,129.21,45.0]
[1719263026712,8.00547946,129.35,129.22,7.7386]
[1719263026918,15.73687946,129.35,129.23,45.0]
[1719263027105,7.7316,129.34,129.21,52.7391]
[1719263027496,8.00547946,129.35,129.21,45.0]
[1719263027699,5.96681614,129.36,129.23,19.3449]
[1719263027899,7.7314,129.35,129.24,45.0]
[1719263028297,7.7314,129.35,129.23,45.0]
[1719263028505,7.7316,129.34,129.23,45.0]
[1719263028705,7.7316,129.34,129.22,45.0]
[1719263029118,0.17,129.33,129.22,45.0]
[1719263029328,0.17,129.33,129.22,52.7386]
[1719263029544,0.17,129.34,129.22,52.7386]
[1719263030110,0.17,129.34,129.23,7.7379]
[1719263030305,8.02178119,129.38,129.24,45.0]
[1719263030510,7.7288,129.39,129.26,19.3397]
[1719263030714,7.7288,129.39,129.25,30.12]
[1719263030715,100.0,129.4,129.27,45.0]
[1719263030918,100.0,129.4,129.17,25.0]
[1719263030919,7.7351,129.28,129.18,6.6519]
[1719263031215,25.0,129.33,129.18,6.6519]
[1719263031520,25.0,129.33,129.17,16.3368]
[1719263031521,25.0,129.3,129.13,42.3484]
[1719263031725,25.0,129.34,129.15,19.3566]
[1719263032023,7.7335,129.31,129.18,7.7406]
[1719263032231,0.17,129.3,129.14,19.3585]
[1719263032530,7.7346,129.29,129.14,19.3585]
[1719263032730,0.17,129.28,129.17,7.7416]
[1719263032911,0.17,129.28,129.16,30.12]
[1719263033228,0.17,129.28,129.13,22.9887]
[1719263033402,7.7363,129.26,129.14,7.7429]
[1719263033732,0.17,129.25,129.06,30.12]
[1719263033921,0.17,129.25,129.09,25.7787]
[1719263034229,7.7381,129.23,129.09,25.7787]
[1719263034416,0.17,129.25,129.09,25.7787]
[1719263034417,0.17,129.22,129.09,25.7787]
[1719263034923,0.17,129.22,129.11,7.745]
[1719263035512,0.17,129.22,129.12,19.3615]
[1719263035721,7.7359,129.27,129.14,7.7429]
[1719263035908,7.7359,129.27,129.13,7.7437]
[1719263036228,100.0,129.26,129.09,25.7788]
[1719263036411,7.7368,129.26,129.12,7.7446]
[1719263036738,125.0,129.3,129.09,6.4129]
[1719263036927,7.7369,129.26,129.12,7.7447]
[1719263037135,7.7371,129.25,129.11,7.7452]
[1719263037507,7.7371,129.25,129.12,7.7446]
[1719263037813,45.0,129.29,129.12,27.1053]
[1719263038012,7.7363,129.27,129.13,7.744]
[1719263038223,0.17,129.26,129.14,45.0]
[1719263038419,7.9064,129.26,129.14,45.0]
[1719263038722,7.737,129.25,129.13,45.0]
[1719263038932,0.17,129.24,129.13,52.744]
[1719263039113,7.7355,129.28,129.13,45.0]
[1719263039313,30.97913985,129.3,129.13,45.0]
[1719263039314,7.7359,129.27,129.14,7.743]
[1719263039505,7.7359,129.27,129.15,45.0]
[1719263039709,7.7352,129.28,129.15,45.0]
[1719263040314,30.97913985,129.3,129.15,45.0]
[1719263040630,38.71353985,129.3,129.15,45.0]
[1719263040925,100.0,129.28,129.09,25.7788]
[1719263041309,100.0,129.26,129.09,25.7788]
[1719263041509,100.0,129.26,129.08,30.12]
[1719263041510,7.7406,129.19,129.08,30.12]
[1719263041711,119.3482,129.22,129.04,46.7567]
[1719263041948,100.0,129.2,129.04,46.7567]
[1719263042231,0.17,129.19,129.09,7.7464]
[1719263042408,7.9094,129.21,129.08,27.1139]
[1719263042611,0.17,129.21,129.08,27.1139]
[1719263042815,0.17,129.21,129.09,7.7463]
[1719263043227,0.17,129.21,129.1,45.0]
[1719263043426,0.17,129.21,129.11,7.7447]
[1719263043617,0.17,129.22,129.12,45.0]
[1719263043822,0.17,129.22,129.09,45.0]
[1719263044024,0.17,129.22,129.09,72.1117]
[1719263044333,7.9088,129.22,129.09,72.1116]
[1719263044720,0.17,129.22,129.1,7.7458]
[1719263044919,0.17,129.22,129.11,52.7453]
[1719263045228,0.17,129.22,129.1,7.7457]
[1719263045429,0.17,129.22,129.12,45.0]
[1719263045632,100.17,129.22,129.07,6.5194]
[1719263045850,7.7418,129.17,129.06,30.12]
[1719263046138,0.17,129.16,129.05,27.1197]
[1719263046623,0.17,129.17,129.05,27.1197]
[1719263047122,100.0,129.16,129.01,30.12]
[1719263047525,100.0,129.14,128.99,19.3809]
[1719263047728,0.17,129.15,129.01,19.3775]
[1719263047729,0.17,129.13,129.01,19.3775]
[1719263047922,0.17,129.13,129.02,7.7506]
[1719263048325,0.17,129.13,129.02,7.7505]
[1719263048649,0.17,129.14,129.02,7.7505]
[1719263049016,31.011007,129.18,129.02,38.7532]
[1719263049213,31.011007,129.18,129.07,19.3686]
[1719263049440,31.011007,129.18,129.07,27.1159]
[1719263049631,31.011007,129.18,129.09,19.3658]
[1719263049831,119.3387,129.28,129.09,19.3658]
[1719263050031,7.7381,129.23,129.1,7.7457]
[1719263050233,7.7381,129.23,129.11,45.0]
[1719263050533,100.0,129.24,129.11,45.0]
[1719263050719,100.0,129.21,129.07,30.12]
[1719263050918,100.0,129.21,129.08,45.0]
[1719263050919,7.7412,129.18,129.08,45.0]
[1719263051119,7.7412,129.18,129.03,19.3746]
[1719263051120,7.7434,129.15,129.03,19.3746]
[1719263051435,7.7434,129.15,129.02,21.9608]
[1719263051436,7.743,129.15,129.02,7.7505]
[1719263051737,7.9878232,129.17,129.02,19.3761]
[1719263051916,0.17,129.16,129.04,19.3728]
[1719263052117,0.17,129.17,129.04,27.1218]
[1719263052317,0.17,129.17,129.05,7.7489]
[1719263052523,0.17,129.17,129.06,7.7482]
[1719263052718,7.98669564,129.19,129.01,38.7541]
[1719263053019,7.7404,129.2,129.08,19.3671]
[1719263053225,7.7394,129.21,129.09,45.0]
[1719263053626,5.93104059,129.24,129.1,19.3643]
[1719263053834,30.12,129.26,129.04,38.7448]
[1719263053835,7.7421,129.17,129.04,27.1222]
[1719263054020,7.7421,129.17,129.05,45.0]
[1719263054341,7.7421,129.17,129.02,6.426]
[1719263054342,100.0,129.19,129.02,6.426]
[1719263054527,7.7425,129.16,129.03,7.75]
[1719263054723,7.7433,129.15,129.02,27.1267]
[1719263054942,119.3517,129.19,128.99,19.3804]
[1719263054943,100.0,129.16,128.99,19.3804]
[1719263055138,7.7443,129.13,128.99,19.3804]
[1719263055444,0.17,129.12,129.03,7.75]
[1719263055624,7.913,129.15,129.02,7.7506]
[1719263055824,100.17,129.15,129.01,27.1284]
[1719263056032,7.7444,129.13,129.01,19.3775]
[1719263056226,0.17,129.12,129.01,27.1287]
[1719263056627,0.17,129.13,129.01,27.1287]
[1719263056841,0.17,129.13,129.01,19.3775]
[1719263057252,0.17,129.13,129.03,19.3744]
[1719263057430,119.3492,129.21,129.05,7.7488]
[1719263057744,7.98390186,129.22,129.08,7.7469]
[1719263058044,7.98390186,129.22,129.08,19.3678]
[1719263058244,7.74,129.2,129.09,45.0]
[1719263058434,7.7395,129.21,129.09,45.0]
[1719263058743,130.12,129.26,129.09,45.0]
[1719263058941,7.7391,129.22,129.09,52.7461]
[1719263059335,7.7393,129.21,129.09,52.7461]
[1719263059528,7.7388,129.22,129.1,7.7458]
[1719263059732,7.7388,129.22,129.11,45.0]
[1719263060048,7.7383,129.23,129.11,45.0]
[1719263060571,7.7388,129.22,129.11,45.0]
[1719263061123,7.97643395,129.25,129.11,45.0]
[1719263061544,5.83798387,129.26,129.13,7.744]
[1719263061846,107.97544329,129.27,129.11,45.0]
[1719263062021,107.97544329,129.27,129.11,7.7453]
[1719263062225,100.0,129.25,129.12,45.0]
[1719263062422,7.7382,129.23,129.12,45.0]
[1719263062652,0.17,129.22,129.12,45.0]
[1719263062831,7.9081,129.23,129.12,45.0]
[1719263063227,0.17,129.23,129.12,45.0]
[1719263063429,7.7389,129.22,129.12,45.0]
[1719263063653,0.17,129.21,129.12,45.0]
[1719263063840,0.17,129.21,129.11,45.0]
[1719263064541,7.7402,129.2,129.11,45.0]
[1719263064742,0.17,129.19,129.07,7.7475]
[1719263064941,0.17,129.19,129.08,45.0]
[1719263065251,0.17,129.19,129.08,52.7471]
[1719263065626,0.17,129.2,129.08,52.7471]
[1719263066029,7.91,129.2,129.08,52.7471]
[1719263066957,100.17,129.2,129.05,16.274]
[1719263067138,7.743,129.15,129.03,27.1246]
[1719263067334,0.17,129.14,129.01,15.0322]
[1719263067650,7.7443,129.13,129.01,22.7834]
[1719263067852,0.17,129.12,129.01,15.0322]
[1719263068081,0.17,129.14,129.03,7.7498]
[1719263068361,0.17,129.14,129.03,7.75]
[1719263068845,0.17,129.15,129.03,7.75]
[1719263069042,7.913,129.15,129.03,7.75]
[1719263069752,0.17,129.15,129.04,19.3737]
[1719263069932,100.0,129.19,129.03,19.3742]
[1719263070133,7.7418,129.17,129.04,7.7493]
[1719263070533,100.0,129.21,129.06,19.3708]
[1719263070756,5.93446312,129.22,129.07,7.7475]
[1719263070972,100.0,129.21,129.04,7.7494]
[1719263071261,7.7434,129.15,129.03,19.3742]
[1719263071465,7.7435,129.14,129.01,22.7833]
[1719263071642,7.7427,129.16,129.03,7.7499]
[1719263072155,0.17,129.15,129.03,7.7499]
[1719263072854,7.9129,129.15,129.03,7.7499]
[1719263073038,7.9129,129.15,129.02,19.3762]
[1719263073039,7.7435,129.14,129.02,19.3762]